bitfinex-derivatives/quotes_SOLF0:USTF0_20250516
["timestamp","ask_amount","ask_price","bid_price","bid_amount"]
[1747404362483,75.92,172.86,172.74,1.9562]
[1747404363477,75.92,172.86,172.72,75.92]
[1747404363984,75.92,172.86,172.75,5.7859]
[1747404364179,75.92,172.86,172.72,75.92]
[1747404364481,5.7843,172.81,172.72,75.92]
[1747404364677,75.9,172.8,172.72,75.92]
[1747404365379,75.9,172.8,172.71,79.8396]
[1747404365879,75.9,172.8,172.73,16.78050282]
[1747404366276,5.7848,172.79,172.73,16.78050282]
[1747404366581,75.9,172.8,172.73,16.78050282]
[1747404367280,75.9,172.8,172.77,5.7852]
[1747404367478,75.9,172.8,172.73,16.78050282]
[1747404367779,75.9,172.85,172.77,16.78050282]
[1747404368082,3.9336,172.93,172.77,168.62050282]
[1747404368284,151.84,172.92,172.77,168.62050282]
[1747404368583,151.84,172.92,172.71,3.9196]
[1747404368881,151.84,172.92,172.73,16.81500865]
[1747404369081,11.562,172.91,172.73,16.81500865]
[1747404369280,151.84,172.92,172.73,92.75500865]
[1747404369476,1.05643798,172.91,172.73,16.81500865]
[1747404369980,1.05643798,172.91,172.72,75.94]
[1747404370482,1.05643798,172.91,172.75,5.7861]
[1747404370682,11.5641,172.88,172.72,75.94]
[1747404370881,151.82,172.87,172.72,75.94]
[1747404371685,151.82,172.87,172.73,5.7866]
[1747404371986,151.82,172.87,172.71,3.9196]
[1747404372284,651.7,172.87,172.71,9.707]
[1747404372488,669.01,172.87,172.67,16.81500865]
[1747404372693,1.05559802,172.86,172.67,16.81500865]
[1747404372889,1.05559802,172.86,172.71,16.81500865]
[1747404373093,5.7849,172.79,172.74,5.7862]
[1747404373392,75.96,172.81,172.72,1.9877]
[1747404373597,5.7856,172.77,172.73,5.7868]
[1747404373793,75.96,172.81,172.72,1.9877]
[1747404374299,75.96,172.81,172.72,7.7747]
[1747404374596,75.96,172.81,172.72,1.9877]
[1747404374797,75.96,172.81,172.71,16.81500865]
[1747404374984,79.7382,172.81,172.71,16.81500865]
[1747404376090,79.7382,172.81,172.68,16.81500865]
[1747404376296,5.7864,172.75,172.71,5.7875]
[1747404376488,5.7864,172.75,172.68,168.65500865]
[1747404376685,79.7382,172.81,172.68,168.65500865]
[1747404376885,5.7857,172.77,172.68,168.65500865]
[1747404377298,79.7382,172.81,172.68,168.65500865]
[1747404377487,5.7862,172.75,172.68,168.65500865]
[1747404377796,79.7382,172.81,172.68,16.81500865]
[1747404377990,79.7382,172.81,172.69,151.84]
[1747404378190,79.7382,172.81,172.71,5.7873]
[1747404378390,79.7382,172.81,172.68,168.65500865]
[1747404378983,79.7382,172.81,172.68,16.81500865]
[1747404379184,79.7382,172.81,172.68,168.65500865]
[1747404379391,79.7382,172.81,172.7,5.7876]
[1747404379987,5.7863,172.75,172.68,168.65500865]
[1747404380388,79.7382,172.81,172.68,168.65500865]
[1747404380590,79.7382,172.81,172.68,16.81500865]
[1747404381095,79.7382,172.81,172.69,5.7881]
[1747404381290,79.7382,172.81,172.68,16.81500865]
[1747404381697,5.7859,172.76,172.72,5.787]
[1747404382197,5.7863,172.75,172.71,5.7875]
[1747404382497,5.7863,172.75,172.68,16.81500865]
[1747404382699,5.7857,172.77,172.68,16.81500865]
[1747404382999,79.7382,172.81,172.68,16.81500865]
[1747404383197,5.7853,172.78,172.68,16.81500865]
[1747404383493,151.82,172.81,172.64,13.4673]
[1747404383696,151.82,172.81,172.71,5.7873]
[1747404384001,151.82,172.81,172.69,75.98]
[1747404384797,5.7867,172.74,172.69,81.7678]
[1747404384996,151.82,172.81,172.67,16.81500865]
[1747404385297,5.787,172.73,172.68,5.7882]
[1747404385499,5.787,172.73,172.66,151.84]
[1747404386000,151.82,172.81,172.66,151.84]
[1747404386499,151.82,172.81,172.68,5.7885]
[1747404387000,5.7867,172.74,172.69,5.7878]
[1747404387200,75.86,172.76,172.69,5.7878]
[1747404387501,75.86,172.76,172.65,75.98]
[1747404387701,75.86,172.76,172.68,5.7883]
[1747404388104,5.7871,172.73,172.68,5.7883]
[1747404388303,75.86,172.76,172.68,5.7883]
[1747404388794,75.86,172.76,172.69,5.7881]
[1747404389194,75.86,172.76,172.59,73.22783432]
[1747404389403,3.7062,172.75,172.61,16.81500865]
[1747404389697,3.7062,172.75,172.62,1.8452]
[1747404390700,5.7877,172.71,172.62,1.8452]
[1747404390902,75.86,172.7,172.62,1.8452]
[1747404391302,75.84,172.71,172.63,75.84]
[1747404391491,75.84,172.71,172.66,5.7888]
[1747404391798,81.6277,172.71,172.66,5.7888]
[1747404392005,75.84,172.71,172.63,79.5763]
[1747404392304,5.7879,172.7,172.63,79.5763]
[1747404392608,75.84,172.71,172.66,5.7889]
[1747404392799,5.7882,172.69,172.66,5.7889]
[1747404393004,75.84,172.71,172.63,3.7363]
[1747404394003,5.7886,172.68,172.63,3.7363]
[1747404394205,75.84,172.71,172.63,3.7363]
[1747404394507,5.7887,172.68,172.63,3.7363]
[1747404394800,75.84,172.71,172.63,9.5263]
[1747404395002,5.7897,172.65,172.61,75.84]
[1747404395198,75.84,172.65,172.54,5.639]
[1747404395400,75.84,172.65,172.57,5.792]
[1747404395596,79.711,172.65,172.54,1.8387]
[1747404395903,79.711,172.65,172.53,5.7932]
[1747404396104,5.7924,172.57,172.53,5.7932]
[1747404396303,75.82,172.59,172.49,5.6813]
[1747404396703,5.7921,172.58,172.49,5.6813]
[1747404397201,75.84,172.63,172.49,81.5213]
[1747404397401,75.84,172.61,172.49,81.5213]
[1747404397895,5.7921,172.58,172.54,5.7929]
[1747404398093,5.7921,172.58,172.49,81.5213]
[1747404398306,81.6311,172.61,172.5,16.81500865]
[1747404398502,81.6311,172.61,172.44,16.81500865]
[1747404398503,75.84,172.61,172.23,921.0169]
[1747404398712,151.7,172.6,172.44,16.86976906]
[1747404398903,5.7931,172.55,172.45,75.86]
[1747404399103,151.7,172.6,172.46,1.8069]
[1747404399700,151.7,172.6,172.47,3.8896]
[1747404399908,5.7931,172.55,172.47,3.8896]
[1747404400207,151.7,172.6,172.47,3.8896]
[1747404400501,5.7927,172.56,172.52,5.7937]
[1747404400909,5.7927,172.56,172.47,3.8896]
[1747404401310,151.7,172.6,172.47,79.7496]
[1747404401702,151.7,172.6,172.5,5.7944]
[1747404401903,5.7934,172.54,172.5,5.7944]
[1747404402203,5.7934,172.54,172.51,5.7941]
[1747404402404,5.7929,172.55,172.51,5.7941]
[1747404402611,151.7,172.6,172.51,5.7941]
[1747404402805,151.7,172.6,172.53,5.7932]
[1747404403006,5.7923,172.57,172.47,79.7496]
[1747404403510,157.4913,172.6,172.48,16.86976906]
[1747404403710,81.6513,172.6,172.48,16.86976906]
[1747404403902,75.86,172.6,172.48,16.86976906]
[1747404404408,75.86,172.6,172.55,5.7926]
[1747404404609,5.7917,172.59,172.55,5.7926]
[1747404404812,5.7917,172.59,172.56,5.7925]
[1747404405004,75.86,172.6,172.56,5.7925]
[1747404405210,75.86,172.6,172.49,151.72]
[1747404405514,75.86,172.6,172.48,75.9]
[1747404405716,5.7929,172.55,172.48,75.9]
[1747404405906,75.84,172.57,172.48,75.9]
[1747404406505,75.84,172.57,172.53,5.7932]
[1747404406810,75.84,172.57,172.48,75.9]
[1747404407015,75.84,172.57,172.48,81.695]
[1747404407310,75.84,172.57,172.46,1.8069]
[1747404407513,3.6397,172.56,172.47,5.7954]
[1747404407916,5.7941,172.52,172.44,75.9]
[1747404408113,3.6397,172.56,172.44,75.9]
[1747404408520,5.7939,172.52,172.44,75.9]
[1747404408718,5.7939,172.52,172.48,5.795]
[1747404409416,5.7939,172.52,172.44,75.9]
[1747404409417,75.82,172.52,172.44,75.9]
[1747404409812,5.7948,172.5,172.44,75.9]
[1747404410010,75.82,172.52,172.44,75.9]
[1747404410220,5.7945,172.51,172.46,5.7958]
[1747404410412,75.82,172.52,172.44,75.9]
[1747404411211,75.82,172.52,172.45,75.92]
[1747404413321,75.82,172.52,172.49,5.7946]
[1747404413524,75.82,172.52,172.45,75.92]
[1747404414223,5.7943,172.51,172.47,5.7955]
[1747404414522,75.82,172.52,172.45,75.92]
[1747404414823,81.6139,172.52,172.48,5.7949]
[1747404415120,81.6139,172.52,172.45,75.92]
[1747404415322,81.6139,172.52,172.48,5.795]
[1747404415922,81.6139,172.52,172.49,5.7948]
[1747404416121,75.82,172.52,172.49,5.7948]
[1747404416325,75.92,172.59,172.5,75.92]
[1747404416623,76.74,172.6,172.5,75.92]
[1747404417422,76.74,172.6,172.54,5.7929]
[1747404417921,76.74,172.6,172.5,75.92]
[1747404418827,76.52,172.62,172.5,75.92]
[1747404419424,76.52,172.62,172.57,5.792]
[1747404419927,76.52,172.62,172.58,5.7918]
[1747404420324,76.42,172.64,172.55,75.92]
[1747404420526,500.72,172.73,172.57,16.86976906]
[1747404420724,500.72,172.73,172.58,80.2335]
[1747404420725,152.3,172.72,172.58,80.2335]
[1747404421527,5.7887,172.68,172.58,80.2335]
[1747404421726,152.3,172.72,172.58,80.2335]
[1747404421922,76.74,172.71,172.58,80.2335]
[1747404422122,76.74,172.71,172.64,5.7897]
[1747404422726,152.66,172.72,172.63,76.8]
[1747404422929,76.8,172.77,172.63,153.58]
[1747404423235,76.78,172.76,172.64,1.9232]
[1747404423731,5.7892,172.66,172.63,76.8]
[1747404424032,76.84,172.71,172.63,76.8]
[1747404424823,76.84,172.71,172.63,82.5901]
[1747404425331,76.84,172.71,172.63,76.8]
[1747404425931,76.84,172.71,172.65,5.7895]
[1747404426430,76.84,172.71,172.63,76.8]
[1747404427030,76.84,172.71,172.63,82.5899]
[1747404427232,76.84,172.71,172.63,5.7899]
[1747404427431,76.84,172.71,172.61,76.78]
[1747404427832,76.64,172.75,172.61,76.78]
[1747404428129,78.6933,172.77,172.61,76.78]
[1747404428130,76.68,172.76,172.64,16.86976906]
[1747404428332,76.68,172.76,172.65,76.72]
[1747404428532,5.7865,172.74,172.7,5.7875]
[1747404429332,5.7869,172.73,172.7,5.7875]
[1747404429631,76.68,172.76,172.66,82.3849]
[1747404429831,76.68,172.76,172.63,76.78]
[1747404430030,93.54976906,172.76,172.63,76.78]
[1747404430429,5.7889,172.67,172.63,82.57]
[1747404430731,76.52,172.7,172.63,76.78]
[1747404431531,5.7887,172.68,172.64,5.7897]
[1747404431730,76.52,172.7,172.63,76.78]
[1747404432132,82.308,172.7,172.66,5.7889]
[1747404432333,82.308,172.7,172.63,76.78]
[1747404432735,5.7882,172.69,172.63,76.78]
[1747404433030,76.52,172.7,172.63,76.78]
[1747404433336,5.7891,172.67,172.63,5.7901]
[1747404433638,76.52,172.7,172.61,76.76]
[1747404433829,5.7887,172.68,172.64,5.7897]
[1747404434030,5.7887,172.68,172.61,76.76]
[1747404434225,76.52,172.7,172.61,76.76]
[1747404435442,76.52,172.7,172.67,5.7888]
[1747404435638,76.52,172.7,172.61,76.76]
[1747404436639,5.7895,172.66,172.63,5.7901]
[1747404437625,76.52,172.7,172.61,76.76]
[1747404438138,5.7887,172.68,172.64,5.7895]
[1747404438537,5.7882,172.69,172.65,5.7894]
[1747404438838,76.52,172.7,172.61,76.76]
[1747404439034,76.76,172.76,172.61,76.76]
[1747404439236,75.82,172.75,172.63,16.86976906]
[1747404439436,75.82,172.75,172.64,77.7137]
[1747404439738,5.7866,172.74,172.71,5.7872]
[1747404439938,75.82,172.75,172.68,76.76]
[1747404440139,77.7672,172.78,172.68,76.76]
[1747404440640,77.7672,172.78,172.65,3.8853]
[1747404440838,5.7867,172.74,172.7,5.7878]
[1747404441040,77.7672,172.78,172.66,76.76]
[1747404441236,77.7672,172.78,172.67,16.86976906]
[1747404441437,76.76,172.8,172.67,16.86976906]
[1747404441637,75.8,172.79,172.67,16.86976906]
[1747404441936,5.7864,172.75,172.72,5.7871]
[1747404442233,75.8,172.79,172.67,16.86976906]
[1747404442442,75.8,172.79,172.68,75.8]
[1747404443040,1.8349,172.81,172.71,16.86976906]
[1747404443239,75.8,172.81,172.72,76.76]
[1747404443431,5.7847,172.8,172.77,5.7854]
[1747404443634,75.8,172.81,172.72,78.5637]
[1747404443842,75.8,172.81,172.73,1.938]
[1747404444040,5.7851,172.79,172.75,5.7859]
[1747404444343,75.8,172.81,172.73,1.938]
[1747404444642,5.7864,172.75,172.72,84.3506]
[1747404445042,75.8,172.81,172.72,78.5637]
[1747404445236,75.8,172.83,172.72,95.43346906]
[1747404445431,76.9572065,172.83,172.73,1.9668]
[1747404445842,5.7847,172.8,172.73,77.7668]
[1747404446042,1.1572065,172.83,172.73,77.7668]
[1747404446245,1.1572065,172.83,172.74,1.9931]
[1747404447542,5.785,172.79,172.75,5.7859]
[1747404448145,5.785,172.79,172.76,5.7858]
[1747404449046,5.785,172.79,172.74,1.9931]
[1747404449248,5.7845,172.8,172.74,1.9931]
[1747404449550,5.7845,172.8,172.76,5.7855]
[1747404449944,79.4564,172.86,172.76,5.7855]
[1747404449945,5.7849,172.79,172.76,5.7855]
[1747404450448,5.7849,172.79,172.75,5.786]
[1747404450643,5.7854,172.78,172.74,1.9931]
[1747404450839,79.4564,172.86,172.74,7.7793]
[1747404451042,79.4564,172.86,172.74,1.9931]
[1747404451237,5.7858,172.76,172.74,1.9931]
[1747404451445,79.4564,172.86,172.74,1.9931]
[1747404451752,5.7854,172.78,172.74,1.9931]
[1747404452049,79.4564,172.86,172.74,1.9931]
[1747404452550,5.7855,172.77,172.74,1.9931]
[1747404452748,75.76,172.8,172.73,81.5466]
[1747404452941,5.7857,172.77,172.73,81.5466]
[1747404453350,5.7857,172.77,172.74,5.7864]
[1747404453947,75.76,172.8,172.73,75.76]
[1747404454354,5.7852,172.78,172.74,5.7864]
[1747404454549,75.76,172.8,172.73,75.76]
[1747404454846,5.7842,172.81,172.78,5.7849]
[1747404455049,5.7842,172.81,172.73,92.62976906]
[1747404455050,75.76,172.85,172.75,92.60976906]
[1747404455549,5.7838,172.82,172.78,5.7849]
[1747404455749,75.76,172.85,172.78,75.74]
[1747404456049,5.7844,172.81,172.77,5.7854]
[1747404456251,75.76,172.85,172.77,5.7854]
[1747404456546,75.76,172.85,172.76,75.74]
[1747404456747,5.7842,172.81,172.78,5.7849]
[1747404457549,5.7839,172.82,172.79,5.7848]
[1747404457752,75.76,172.85,172.76,75.74]
[1747404458248,5.7837,172.83,172.8,5.7844]
[1747404458448,75.76,172.85,172.76,75.74]
[1747404459251,151.48,172.88,172.76,75.74]
[1747404459563,5.7834,172.84,172.76,75.74]
[1747404459851,151.48,172.88,172.76,75.74]
[1747404460040,5.784,172.82,172.79,5.7846]
[1747404460244,151.48,172.88,172.76,75.74]
[1747404460750,151.48,172.88,172.8,5.7842]
[1747404460947,151.48,172.88,172.76,75.74]
[1747404461451,5.7834,172.84,172.8,5.7842]
[1747404461747,151.48,172.88,172.79,10.50636176]
[1747404462245,75.74,172.88,172.79,10.50636176]
[1747404462451,5.7814,172.89,172.86,5.7824]
[1747404462846,75.7,172.91,172.82,86.24636176]
[1747404462847,75.7,172.91,172.85,5.7826]
[1747404463047,75.7,172.91,172.82,86.24636176]
[1747404463351,75.7,172.91,172.82,75.74]
[1747404464851,5.782,172.88,172.82,75.74]
[1747404465051,75.7,172.91,172.82,75.74]
[1747404465847,75.74,172.92,172.82,75.74]
[1747404466052,75.68,172.91,172.86,5.7822]
[1747404466251,75.68,172.91,172.82,75.74]
[1747404466450,75.68,172.91,172.83,5.7832]
[1747404466854,151.4,172.91,172.83,5.7832]
[1747404467153,5.7828,172.85,172.82,5.7837]
[1747404467451,151.4,172.91,172.81,75.72]
[1747404467958,5.782,172.88,172.81,75.72]
[1747404468152,151.4,172.91,172.81,92.5241834]
[1747404468455,75.68,172.91,172.81,92.5241834]
[1747404468654,5.7817,172.89,172.86,5.7824]
[1747404468852,75.68,172.91,172.81,92.5241834]
[1747404469157,5.7818,172.88,172.85,5.7825]
[1747404469349,5.7818,172.88,172.81,92.5241834]
[1747404469548,75.66,172.91,172.81,92.5241834]
[1747404469749,5.7818,172.88,172.85,5.7827]
[1747404470251,75.66,172.91,172.81,92.5241834]
[1747404470658,5.7813,172.9,172.87,5.782]
[1747404470954,75.66,172.91,172.81,92.5241834]
[1747404471250,5.7818,172.88,172.81,92.5241834]
[1747404471457,75.64,172.91,172.81,92.5241834]
[1747404471956,5.7818,172.88,172.85,5.7826]
[1747404472251,5.7816,172.89,172.86,5.7823]
[1747404472556,75.64,172.91,172.81,92.5241834]
[1747404472950,5.7823,172.87,172.84,5.7829]
[1747404473857,75.62,172.92,172.81,92.5241834]
[1747404474253,75.62,172.92,172.82,1.8392]
[1747404474459,5.7809,172.91,172.88,5.7815]
[1747404475054,5.7811,172.9,172.87,5.782]
[1747404475261,75.62,172.93,172.82,3.692]
[1747404475457,5.7814,172.9,172.82,3.692]
[1747404475665,75.62,172.93,172.87,5.782]
[1747404475863,75.62,172.93,172.82,3.692]
[1747404476060,5.7816,172.89,172.86,5.7823]
[1747404476255,75.62,172.93,172.82,3.692]
[1747404476451,5.782,172.88,172.82,3.692]
[1747404476658,75.62,172.93,172.86,5.7822]
[1747404477158,75.62,172.93,172.87,5.782]
[1747404477566,5.7814,172.9,172.87,5.782]
[1747404477959,75.62,172.93,172.87,5.782]
[1747404478465,75.62,172.93,172.86,5.7823]
[1747404478759,75.62,172.93,172.82,1.8392]
[1747404478954,5.782,172.88,172.82,1.8392]
[1747404479159,75.62,172.93,172.82,1.8392]
[1747404480171,75.72,172.95,172.82,1.8392]
[1747404480363,79.4003,172.96,172.84,16.8041834]
[1747404480562,79.4003,172.96,172.85,1.9093]
[1747404480860,79.4003,172.96,172.86,75.7]
[1747404481263,79.4003,172.96,172.87,5.782]
[1747404481575,75.7,172.99,172.87,16.8041834]
[1747404481761,75.58,172.98,172.87,18.7791834]
[1747404482168,75.56,172.98,172.87,18.7791834]
[1747404482769,75.56,172.98,172.88,75.56]
[1747404483073,5.7792,172.96,172.88,75.56]
[1747404483264,75.56,172.98,172.88,75.56]
[1747404483463,75.56,172.98,172.88,86.05390538]
[1747404483668,75.56,172.98,172.91,10.49390538]
[1747404483969,81.3386,172.98,172.95,5.7794]
[1747404484168,75.54,173.03,172.91,86.03390538]
[1747404484372,5.7783,172.99,172.96,5.7788]
[1747404484567,211.58346629,173.0,172.91,86.03390538]
[1747404484867,211.58346629,173.0,172.91,75.54]
[1747404485063,136.04346629,173.0,172.91,75.54]
[1747404485267,5.7785,172.98,172.91,75.54]
[1747404485478,136.04346629,173.0,172.91,75.54]
[1747404485772,151.08,173.03,172.93,10.49390538]
[1747404486070,151.08,173.03,172.91,1.865]
[1747404486274,5.7791,172.96,172.93,5.7799]
[1747404486569,151.08,173.03,172.91,77.405]
[1747404487273,75.54,173.03,172.91,77.405]
[1747404487471,75.52,173.02,172.91,77.405]
[1747404488179,75.52,173.02,172.91,75.54]
[1747404488776,10.49390538,173.01,172.89,75.54]
[1747404489073,10.49390538,172.98,172.85,77.4493]
[1747404489373,152.9968,172.97,172.85,75.54]
[1747404489870,1.8159,172.96,172.88,5.7815]
[1747404490074,1.8159,172.96,172.85,75.54]
[1747404490674,5.7811,172.91,172.87,5.7818]
[1747404490974,5.7811,172.91,172.85,75.54]
[1747404491475,1.8159,172.96,172.85,75.54]
[1747404491976,5.7807,172.92,172.88,5.7817]
[1747404492272,1.8159,172.96,172.85,75.54]
[1747404492771,5.7807,172.92,172.85,75.54]
[1747404492975,1.8159,172.96,172.85,75.54]
[1747404493184,5.781,172.91,172.87,5.7819]
[1747404493477,1.8159,172.96,172.82,499.78]
[1747404493679,5.7813,172.9,172.87,5.7821]
[1747404493879,75.46,172.92,172.82,499.78]
[1747404494079,75.46,172.92,172.83,75.54]
[1747404494282,5.7822,172.87,172.84,5.7829]
[1747404494675,5.7817,172.89,172.85,5.7826]
[1747404495075,75.46,172.92,172.85,5.7826]
[1747404495376,75.46,172.92,172.83,75.54]
[1747404495782,5.7811,172.9,172.87,5.7821]
[1747404495980,75.46,172.92,172.83,75.54]
[1747404496272,1.8159,172.96,172.84,10.50251633]
[1747404496481,5.7799,172.94,172.91,5.7808]
[1747404496779,1.8159,172.96,172.88,75.54]
[1747404496971,5.7799,172.94,172.9,5.781]
[1747404497373,150.98,172.97,172.88,75.54]
[1747404497574,75.44,172.97,172.93,10.50251633]
[1747404497772,150.98,173.01,172.93,86.04251633]
[1747404497985,5.7783,172.99,172.96,5.7788]
[1747404498279,150.98,173.01,172.93,86.04251633]
[1747404498475,75.44,173.01,172.93,86.04251633]
[1747404498775,75.44,173.01,172.93,75.54]
[1747404499172,75.44,173.01,172.89,77.3508]
[1747404499372,75.54,173.0,172.89,77.3508]
[1747404499568,75.54,173.0,172.91,5.7806]
[1747404499781,75.54,173.0,172.89,77.3508]
[1747404499981,5.78,172.94,172.89,75.54]
[1747404500179,75.42,172.96,172.89,75.54]
[1747404500885,75.54,173.0,172.89,75.54]
[1747404501073,75.4,172.99,172.89,75.54]
[1747404501570,75.4,172.99,172.88,79.4361]
[1747404501873,75.4,172.99,172.87,10.50251633]
[1747404502180,75.4,172.99,163.64,8.49208993]
[1747404502181,10.50282342,172.94,172.83,5.6448]
[1747404502382,150.94,172.93,172.83,5.6448]
[1747404502985,5.7809,172.91,172.87,5.7819]
[1747404503181,150.94,172.93,172.83,5.6448]
[1747404503585,150.94,172.93,172.84,10.50282342]
[1747404503982,5.7806,172.92,172.88,5.7816]
[1747404504284,75.4,172.93,172.84,10.50282342]
[1747404504484,5.7794,172.96,172.92,5.7802]
[1747404504688,75.38,172.97,172.88,75.54]
[1747404505179,75.38,172.97,172.91,5.7805]
[1747404505582,75.38,172.97,172.88,75.54]
[1747404506380,75.38,172.97,172.85,16.78852256]
[1747404506689,75.38,172.97,172.86,150.9]
[1747404506690,5.7799,172.94,172.86,150.9]
[1747404507187,5.7799,172.94,172.9,5.7808]
[1747404507388,5.7799,172.94,172.86,150.9]
[1747404507889,75.38,172.97,172.86,150.9]
[1747404508382,75.38,172.97,172.83,22.4366897]
[1747404508778,75.54,172.96,172.84,75.54]
[1747404509182,1.9524,172.95,172.82,499.78]
[1747404509386,1.9524,172.95,172.76,16.79307244]
[1747404509387,1.9825,172.94,172.8,75.54]
[1747404509892,1.9825,172.94,172.77,1.8462]
[1747404510080,1.9825,172.94,172.78,75.54]
[1747404510276,16.79307244,172.91,172.78,75.54]
[1747404510494,150.86,172.9,172.78,75.54]
[1747404510891,5.7837,172.83,172.79,5.7846]
[1747404511195,150.86,172.85,172.75,75.54]
[1747404511387,3.736,172.84,172.75,75.54]
[1747404511582,3.736,172.84,172.72,75.54]
[1747404511789,16.79307244,172.83,172.66,499.62]
[1747404511982,5.7872,172.72,172.68,5.7884]
[1747404512183,75.3,172.75,172.67,1.15827879]
[1747404512588,75.3,172.75,172.68,5.7882]
[1747404512986,75.3,172.75,172.67,1.15827879]
[1747404513277,5.7869,172.73,172.68,5.7884]
[1747404513482,75.3,172.75,172.67,1.15827879]
[1747404515096,75.3,172.75,172.71,5.7873]
[1747404515392,75.3,172.75,172.67,1.15827879]
[1747404515592,81.0861,172.75,172.71,5.7872]
[1747404515993,75.3,172.75,172.67,1.15827879]
[1747404516195,75.3,172.75,172.71,5.7872]
[1747404517095,75.3,172.75,172.72,5.7871]
[1747404517496,75.3,172.75,172.64,77.1677]
[1747404519809,75.3,172.75,172.71,5.7875]
[1747404520508,75.3,172.75,172.72,5.7872]
[1747404521506,75.3,172.75,172.64,77.1677]
[1747404522005,5.7868,172.74,172.69,5.788]
[1747404522200,75.3,172.75,172.64,75.3]
[1747404522401,75.3,172.77,172.64,75.3]
[1747404522595,75.3,172.77,172.65,18.74367244]
[1747404522799,150.58,172.77,172.65,18.74367244]
[1747404523002,75.28,172.77,172.76,5.7859]
[1747404523810,75.28,172.77,172.75,5.7862]
[1747404524010,75.28,172.77,172.7,75.36]
[1747404524318,75.28,172.77,172.76,5.7859]
[1747404524908,75.36,172.81,172.79,5.7849]
[1747404525108,75.26,172.8,172.79,5.7849]
[1747404525308,75.26,172.8,172.71,3.8305]
[1747404525309,75.24,172.84,172.75,75.36]
[1747404525611,75.24,172.9,172.77,16.79307244]
[1747404526208,5.7827,172.86,172.77,16.79307244]
[1747404526408,5.7827,172.86,172.81,5.784]
[1747404526913,75.24,172.9,172.78,75.36]
[1747404527212,75.24,172.9,172.78,81.1452]
[1747404527419,5.7832,172.85,172.78,81.1452]
[1747404527718,75.24,172.9,172.78,81.1452]
[1747404527913,75.24,172.9,172.78,75.36]
[1747404528113,92.03307244,172.9,172.76,1.8886]
[1747404528313,92.03307244,172.9,172.75,75.36]
[1747404529211,92.03307244,172.9,172.72,1.8307]
[1747404529416,92.03307244,172.9,172.73,5.7867]
[1747404529718,92.03307244,172.9,172.72,77.1907]
[1747404530115,11.5632,172.89,172.72,77.1907]
[1747404530310,5.7856,172.78,172.72,77.1907]
[1747404530511,75.2,172.8,172.72,77.1907]
[1747404530710,5.7862,172.76,172.72,75.36]
[1747404530911,75.2,172.8,172.71,3.8305]
[1747404531111,75.2,172.8,172.7,75.36]
[1747404531317,5.7875,172.72,172.68,75.36]
[1747404531720,75.2,172.75,172.68,75.36]
[1747404532921,5.7875,172.72,172.68,81.1484]
[1747404533626,5.7885,172.69,172.64,5.7899]